fUST/lending_fUST_20250827
["ID","MTS","AMOUNT","RATE_DAILY","PERIOD"]
[381595135,1756291846889,-480.0,0.00022191,2]
[381595136,1756291846898,-480.0,0.00022191,2]
[381595137,1756291846908,-480.0,0.00022191,2]
[381595138,1756291846917,-480.0,0.00022191,2]
[381595139,1756291846926,-480.0,0.00022191,2]
[381595141,1756291846936,-403.1219285,0.00022191,2]
[381595143,1756291846944,-480.0,0.00022191,2]
[381595145,1756291846954,-1126.54,0.00022191,2]
[381595147,1756291846963,-480.0,0.00022191,2]
[381595149,1756291846972,-480.0,0.00022191,2]
[381595151,1756291846981,-480.0,0.00022191,2]
[381595153,1756291846991,-480.0,0.00022191,2]
[381595155,1756291847000,-480.0,0.00022191,2]
[381595157,1756291847009,-480.0,0.00022191,2]
[381595159,1756291847018,-574.18,0.00022191,2]
[381595161,1756291847027,-935.07,0.00022191,2]
[381595163,1756291847038,-480.0,0.00022191,2]
[381595165,1756291847047,-1570.68,0.00022191,2]
[381595167,1756291847056,-598.29,0.00022191,2]
[381595169,1756291847066,-480.0,0.00022191,2]
[381595171,1756291847076,-480.0,0.00022191,2]
[381595173,1756291847085,-480.0,0.00022191,2]
[381595174,1756291847094,-628.18,0.00022191,2]
[381595176,1756291847104,-480.0,0.00022191,2]
[381595178,1756291847113,-540.26,0.00022191,2]
[381595180,1756291847123,-480.0,0.00022191,2]
[381595182,1756291847132,-480.0,0.00022191,2]
[381595184,1756291847141,-954.81,0.00022191,2]
[381595186,1756291847151,-480.0,0.00022191,2]
[381595188,1756291847160,-480.0,0.00022191,2]
[381595190,1756291847169,-480.0,0.00022191,2]
[381595192,1756291847179,-480.0,0.00022191,2]
[381595194,1756291847188,-656.23,0.00022191,2]
[381595196,1756291847198,-480.0,0.00022191,2]
[381595198,1756291847207,-484.88,0.00022191,2]
[381595200,1756291847217,-480.0,0.00022191,2]
[381595202,1756291847230,-480.0,0.00022191,2]
[381595204,1756291847240,-480.0,0.00022191,2]
[381595206,1756291847250,-480.0,0.00022191,2]
[381595208,1756291847259,-480.0,0.00022191,2]
[381595210,1756291847271,-480.0,0.00022191,2]
[381595212,1756291847281,-480.0,0.00022191,2]
[381595214,1756291847291,-480.0,0.00022191,2]
[381595216,1756291847302,-2173.07,0.00022191,2]
[381595218,1756291847312,-480.0,0.00022191,2]
[381595220,1756291847321,-591.63,0.00022191,2]
[381595222,1756291847331,-3910.05,0.00022191,2]
[381595224,1756291847341,-480.0,0.00022191,2]
[381595226,1756291847350,-3445.63,0.00022191,2]
[381595228,1756291847359,-480.0,0.00022191,2]
[381595230,1756291847368,-480.0,0.00022191,2]
[381595232,1756291847377,-2044.52,0.00022191,2]
[381595234,1756291847387,-480.0,0.00022191,2]
[381595236,1756291847396,-480.0,0.00022191,2]
[381595238,1756291847405,-610.11,0.00022191,2]
[381595240,1756291847414,-657.56,0.00022191,2]
[381595242,1756291847423,-480.0,0.00022191,2]
[381595244,1756291847433,-480.0,0.00022191,2]
[381595246,1756291847442,-480.0,0.00022191,2]
[381595248,1756291847451,-480.0,0.00022191,2]
[381595250,1756291847461,-480.0,0.00022191,2]
[381595252,1756291847470,-480.0,0.00022191,2]
[381595253,1756291847479,-480.0,0.00022191,2]
[381595255,1756291847489,-480.0,0.00022191,2]
[381595257,1756291847498,-480.0,0.00022191,2]
[381595259,1756291847507,-480.0,0.00022191,2]
[381595261,1756291847517,-875.6,0.00022191,2]
[381595263,1756291847526,-480.0,0.00022191,2]
[381595265,1756291847536,-480.0,0.00022191,2]
[381595267,1756291847545,-480.0,0.00022191,2]
[381595269,1756291847555,-713.78,0.00022191,2]
[381595271,1756291847564,-967.18,0.00022191,2]
[381595273,1756291847576,-532.32,0.00022191,2]
[381595275,1756291847585,-480.0,0.00022191,2]
[381595277,1756291847595,-480.0,0.00022191,2]
[381595279,1756291847604,-480.0,0.00022191,2]
[381595281,1756291847613,-603.96713537,0.00022191,2]
[381595283,1756291847623,-1148.21,0.00022191,2]
[381595285,1756291847632,-509.04,0.00022191,2]
[381595287,1756291847642,-480.0,0.00022191,2]
[381595289,1756291847652,-480.0,0.00022191,2]
[381595291,1756291847662,-480.0,0.00022191,2]
[381595293,1756291847671,-1043.25,0.00022191,2]
[381595295,1756291847681,-480.0,0.00022191,2]
[381595297,1756291847691,-443.1953117,0.00022191,2]
[381595299,1756291847700,-480.0,0.00022191,2]
[381595301,1756291847709,-480.0,0.00022191,2]
[381595303,1756291847718,-691.87,0.00022191,2]
[381595305,1756291847728,-1283.65,0.00022191,2]
[381595307,1756291847737,-1656.46,0.00022191,2]
[381595309,1756291847746,-480.0,0.00022191,2]
[381595311,1756291847755,-2217.43,0.00022191,2]
[381595313,1756291847765,-480.0,0.00022191,2]
[381595315,1756291847774,-480.0,0.00022191,2]
[381595317,1756291847783,-480.0,0.00022191,2]
[381595319,1756291847793,-1287.94,0.00022191,2]
[381595321,1756291847802,-480.0,0.00022191,2]
[381595323,1756291847811,-480.0,0.00022191,2]
[381595325,1756291847820,-480.0,0.00022191,2]
[381595327,1756291847829,-480.0,0.00022191,2]
[381595329,1756291847839,-480.0,0.00022191,2]
[381595330,1756291847849,-480.0,0.00022191,2]
[381595332,1756291847858,-649.95,0.00022191,2]
[381595334,1756291847867,-480.0,0.00022191,2]
[381595336,1756291847877,-592.87,0.00022191,2]
[381595338,1756291847888,-480.0,0.00022191,2]
[381595340,1756291847897,-480.0,0.00022191,2]
[381595342,1756291847906,-581.94,0.00022191,2]
[381595344,1756291847915,-514.54,0.00022191,2]
[381595346,1756291847925,-480.0,0.00022191,2]
[381595348,1756291847935,-999.21,0.00022191,2]
[381595350,1756291847945,-422.58903116,0.00022191,2]
[381595352,1756291847954,-480.0,0.00022191,2]
[381595354,1756291847964,-3116.72,0.00022191,2]
[381595356,1756291847974,-480.0,0.00022191,2]
[381595358,1756291847983,-151.0,0.000222,8]
[381595360,1756291847992,-151.0,0.000223,5]
[381595362,1756291848002,-151.0,0.000223,6]
[381595364,1756291848012,-151.0,0.00022324,2]
[381595366,1756291848022,-151.0,0.00022324,2]
[381595368,1756291848032,-500.0,0.00022324,2]
[381595370,1756291848042,-151.0,0.00022324,2]
[381595372,1756291848052,-500.0,0.00022324,2]
[381595374,1756291848063,-151.0,0.00022324,2]
[381595376,1756291848073,-500.0,0.00022324,2]
[381595378,1756291848083,-151.0,0.00022324,2]
[381595380,1756291848092,-500.0,0.00022324,2]
[381595382,1756291848103,-151.0,0.00022324,2]
[381595384,1756291848112,-500.0,0.00022324,2]
[381595386,1756291848122,-201.93286099,0.00022324,2]
[381595388,1756291848132,-2618.2481025,0.00022324,2]
[381595390,1756291848142,-151.0,0.00022324,2]
[381595392,1756291848151,-500.0,0.00022324,2]
[381595394,1756291848161,-151.0,0.00022324,2]
[381595396,1756291848172,-500.0,0.00022324,2]
[381595398,1756291848186,-151.0,0.00022324,2]
[381595400,1756291848196,-151.0,0.00022324,2]
[381595402,1756291848206,-500.0,0.00022324,2]
[381595404,1756291848216,-151.0,0.00022324,2]
[381595406,1756291848229,-151.0,0.00022324,2]
[381595408,1756291848240,-500.0,0.00022324,2]
[381595410,1756291848250,-500.0,0.00022324,2]
[381595412,1756291848260,-500.0,0.00022324,2]
[381595414,1756291848271,-500.0,0.00022324,2]
[381595416,1756291848281,-858.34690828,0.00022325,2]
[381595418,1756291848292,-3429.95424549,0.00022325,2]
[381595420,1756291848303,-480.0,0.00022353,2]
[381595422,1756291848315,-480.0,0.00022353,2]
[381595424,1756291848325,-480.0,0.00022353,2]
[381595426,1756291848335,-480.0,0.00022353,2]
[381595428,1756291848345,-480.0,0.00022353,2]
[381595430,1756291848355,-480.0,0.00022353,2]
[381595432,1756291848365,-480.0,0.00022353,2]
[381595434,1756291848375,-480.0,0.00022353,2]
[381595436,1756291848385,-480.0,0.00022353,2]
[381595438,1756291848396,-480.0,0.00022353,2]
[381595440,1756291848406,-491.18,0.00022353,2]
[381595442,1756291848416,-480.0,0.00022353,2]
[381595444,1756291848425,-480.0,0.00022353,2]
[381595446,1756291848438,-480.0,0.00022353,2]
[381595448,1756291848447,-480.0,0.00022353,2]
[381595450,1756291848457,-480.0,0.00022353,2]
[381595452,1756291848468,-480.0,0.00022353,2]
[381595454,1756291848478,-480.0,0.00022353,2]
[381595456,1756291848487,-480.0,0.00022353,2]
[381595458,1756291848498,-480.0,0.00022353,2]
[381595460,1756291848508,-480.0,0.00022353,2]
[381595462,1756291848518,-480.0,0.00022353,2]
[381595464,1756291848528,-1292.51,0.00022353,2]
[381595466,1756291848537,-480.0,0.00022353,2]
[381595468,1756291848547,-271.83694092,0.00022353,2]
[381595470,1756291848557,-480.0,0.00022353,2]
[381595472,1756291848567,-1087.45,0.00022353,2]
[381595474,1756291848577,-480.0,0.00022353,2]
[381595476,1756291848587,-480.0,0.00022353,2]
[381595478,1756291848597,-480.0,0.00022353,2]
[381595480,1756291848607,-480.0,0.00022353,2]
[381595482,1756291848618,-925.02,0.00022353,2]
[381595484,1756291848627,-480.0,0.00022353,2]
[381595486,1756291848637,-480.0,0.00022353,2]
[381595488,1756291848647,-480.0,0.00022353,2]
[381595490,1756291848656,-480.0,0.00022353,2]
[381595492,1756291848666,-1994.45,0.00022353,2]
[381595494,1756291848677,-570.82,0.00022353,2]
[381595496,1756291848689,-480.0,0.00022353,2]
[381595498,1756291848699,-480.0,0.00022353,2]
[381595500,1756291848708,-480.0,0.00022353,2]
[381595502,1756291848718,-480.0,0.00022353,2]
[381595504,1756291848728,-480.0,0.00022353,2]
[381595506,1756291848737,-480.0,0.00022353,2]
[381595508,1756291848747,-480.0,0.00022353,2]
[381595510,1756291848757,-480.0,0.00022353,2]
[381595512,1756291848767,-480.0,0.00022353,2]
[381595514,1756291848777,-480.0,0.00022353,2]
[381595516,1756291848787,-480.0,0.00022353,2]
[381595518,1756291848797,-480.0,0.00022353,2]
[381595519,1756291848807,-480.0,0.00022353,2]
[381595520,1756291848816,-493.6,0.00022353,2]
[381595521,1756291848825,-480.0,0.00022353,2]
[381595522,1756291848835,-480.0,0.00022353,2]
[381595523,1756291848845,-480.0,0.00022353,2]
[381595524,1756291848854,-360.79766305,0.00022353,2]
[381595525,1756291848864,-542.63,0.00022353,2]
[381595526,1756291848873,-480.0,0.00022353,2]
[381595527,1756291848883,-819.38,0.00022353,2]
[381595528,1756291848892,-480.0,0.00022353,2]
[381595529,1756291848902,-480.0,0.00022353,2]
[381595530,1756291848912,-480.0,0.00022353,2]
[381595531,1756291848921,-480.0,0.00022353,2]
[381595532,1756291848932,-480.0,0.00022353,2]
[381595533,1756291848941,-480.0,0.00022353,2]
[381595534,1756291848951,-480.0,0.00022353,2]
[381595535,1756291848961,-480.0,0.00022353,2]
[381595536,1756291848971,-960.27,0.00022353,2]
[381595537,1756291848981,-480.0,0.00022353,2]
[381595538,1756291848990,-480.0,0.00022353,2]
[381595539,1756291848999,-480.0,0.00022353,2]
[381595540,1756291849010,-480.0,0.00022353,2]
[381595541,1756291849019,-480.0,0.00022353,2]
[381595542,1756291849031,-480.0,0.00022353,2]
[381595543,1756291849040,-480.0,0.00022353,2]
[381595544,1756291849050,-480.0,0.00022353,2]
[381595545,1756291849060,-1263.01,0.00022353,2]
[381595546,1756291849069,-480.0,0.00022353,2]
[381595547,1756291849078,-480.0,0.00022353,2]
[381595548,1756291849087,-480.0,0.00022353,2]
[381595549,1756291849096,-592.73,0.00022353,2]
[381595550,1756291849106,-480.0,0.00022353,2]
[381595551,1756291849116,-718.47,0.00022353,2]
[381595552,1756291849125,-492.75,0.00022353,2]
[381595553,1756291849135,-480.0,0.00022353,2]
[381595554,1756291849144,-488.94,0.00022353,2]
[381595555,1756291849154,-480.0,0.00022353,2]
[381595556,1756291849163,-480.0,0.00022353,2]
[381595557,1756291849173,-480.0,0.00022353,2]
[381595558,1756291849183,-547.34,0.00022353,2]
[381595559,1756291849193,-480.0,0.00022353,2]
[381595560,1756291849359,-812.36,0.00022353,2]
[381595561,1756291849369,-480.0,0.00022353,2]
[381595562,1756291849379,-604.47,0.00022353,2]
[381595563,1756291849388,-480.0,0.00022353,2]
[381595564,1756291849397,-518.05,0.00022353,2]
[381595565,1756291849407,-480.0,0.00022353,2]
[381595566,1756291849417,-508.99,0.00022353,2]
[381595567,1756291849426,-480.0,0.00022353,2]
[381595568,1756291849437,-480.0,0.00022353,2]
[381595569,1756291849446,-480.0,0.00022353,2]
[381595570,1756291849455,-480.0,0.00022353,2]
[381595571,1756291849465,-480.0,0.00022353,2]
[381595572,1756291849474,-480.0,0.00022353,2]
[381595573,1756291849483,-805.82,0.00022353,2]
[381595574,1756291849494,-519.61,0.00022353,2]
[381595575,1756291849504,-480.0,0.00022353,2]
[381595576,1756291849514,-480.0,0.00022353,2]
[381595577,1756291849524,-559.86,0.00022353,2]
[381595578,1756291849533,-637.09,0.00022353,2]
[381595579,1756291849543,-480.0,0.00022353,2]
[381595580,1756291849553,-480.0,0.00022353,2]
[381595581,1756291849563,-480.0,0.00022353,2]
[381595582,1756291849572,-480.0,0.00022353,2]
[381595583,1756291849581,-480.0,0.00022353,2]
[381595584,1756291849591,-480.0,0.00022353,2]
[381595585,1756291849600,-480.0,0.00022353,2]
[381595586,1756291849610,-480.0,0.00022353,2]
[381595587,1756291849619,-500.0,0.00022353,2]
[381595588,1756291849628,-480.0,0.00022353,2]
[381595589,1756291849638,-480.0,0.00022353,2]
[381595590,1756291849648,-480.0,0.00022353,2]
[381595591,1756291849657,-480.0,0.00022353,2]
[381595592,1756291849666,-480.0,0.00022353,2]
[381595593,1756291849675,-480.0,0.00022353,2]
[381595594,1756291849686,-480.0,0.00022353,2]
[381595595,1756291849695,-480.0,0.00022353,2]
[381595596,1756291849705,-480.0,0.00022353,2]
[381595597,1756291849714,-1369.34,0.00022353,2]
[381595598,1756291849724,-526.71,0.00022353,2]
[381595599,1756291849734,-480.0,0.00022353,2]
[381595600,1756291849743,-480.0,0.00022353,2]
[381595601,1756291849753,-480.0,0.00022353,2]
[381595602,1756291849764,-480.0,0.00022353,2]
[381595603,1756291849773,-480.0,0.00022353,2]
[381595604,1756291849783,-602.31,0.00022353,2]
[381595605,1756291849792,-480.0,0.00022353,2]
[381595606,1756291849802,-480.0,0.00022353,2]
[381595607,1756291849811,-390.19,0.00022353,2]
[381595608,1756291849821,-480.0,0.00022353,2]
[381595609,1756291849830,-668.1,0.00022353,2]
[381595610,1756291849840,-480.0,0.00022353,2]
[381595611,1756291849849,-480.0,0.00022353,2]
[381595612,1756291849859,-480.0,0.00022353,2]
[381595613,1756291849868,-480.0,0.00022353,2]
[381595614,1756291849877,-480.0,0.00022353,2]
[381595615,1756291849887,-480.0,0.00022353,2]
[381595616,1756291849896,-487.96,0.00022353,2]
[381595617,1756291849905,-901.71,0.00022353,2]
[381595618,1756291849915,-480.0,0.00022353,2]
[381595619,1756291849926,-480.0,0.00022353,2]
[381595620,1756291849936,-480.0,0.00022353,2]
[381595621,1756291849946,-480.0,0.00022353,2]
[381595622,1756291849955,-480.0,0.00022353,2]
[381595623,1756291849966,-480.0,0.00022353,2]
[381595624,1756291849976,-480.0,0.00022353,2]
[381595625,1756291849985,-480.0,0.00022353,2]
[381595626,1756291849996,-151.530056,0.00022353,7]
[381595627,1756291850006,-151.0,0.00022353,7]
[381595628,1756291850015,-151.0,0.00022353,7]
[381595629,1756291850025,-151.0,0.00022353,7]
[381595630,1756291850035,-151.0,0.00022353,7]
[381595631,1756291850044,-480.0,0.00022353,2]
[381595632,1756291850054,-151.0,0.00022353,7]
[381595633,1756291850063,-555.04,0.00022353,2]
[381595634,1756291850073,-500.0,0.00022353,2]
[381595635,1756291850082,-480.0,0.00022353,2]
[381595636,1756291850092,-480.0,0.00022353,2]
[381595637,1756291850101,-480.0,0.00022353,2]
[381595638,1756291850111,-151.0,0.00022353,7]
[381595639,1756291850120,-480.0,0.00022353,2]
[381595640,1756291850130,-480.0,0.00022353,2]
[381595641,1756291850139,-435.502246,0.00022353,7]
[381595642,1756291850149,-435.502246,0.00022353,7]
[381595643,1756291850158,-262.77482585,0.00022353,2]
[381595644,1756291850167,-435.502246,0.00022353,7]
[381595645,1756291850177,-435.502246,0.00022353,7]
[381595646,1756291850187,-480.0,0.00022353,2]
[381595647,1756291850197,-480.0,0.00022353,2]
[381595648,1756291850207,-295.60708861,0.00022353,2]
[381595649,1756291850217,-480.0,0.00022353,2]
[381595650,1756291850228,-492.52,0.00022353,2]
[381595651,1756291850238,-514.78,0.00022353,2]
[381595652,1756291850247,-480.0,0.00022353,2]
[381595653,1756291850258,-616.11,0.00022353,2]
[381595654,1756291850268,-480.0,0.00022353,2]
[381595655,1756291850278,-480.0,0.00022353,2]
[381595656,1756291850288,-480.0,0.00022353,2]
[381595657,1756291850299,-480.0,0.00022353,2]
[381595658,1756291850309,-531.15,0.00022353,2]
[381595659,1756291850319,-480.0,0.00022353,2]
[381595660,1756291850329,-480.0,0.00022353,2]
[381595661,1756291850338,-480.0,0.00022353,2]
[381595662,1756291850348,-480.0,0.00022353,2]
[381595663,1756291850358,-581.21,0.00022353,2]
[381595664,1756291850367,-480.0,0.00022353,2]
[381595665,1756291850376,-574.67,0.00022354,2]
[381595666,1756291850386,-480.0,0.00022355,2]
[381595667,1756291850396,-480.0,0.00022355,2]
[381595668,1756291850405,-535.21,0.00022355,2]
[381595669,1756291850415,-480.0,0.00022355,2]
[381595670,1756291850424,-480.0,0.00022355,2]
[381595671,1756291850435,-480.0,0.00022355,2]
[381595672,1756291850444,-493.47,0.00022355,2]
[381595673,1756291850454,-480.0,0.00022355,2]
[381595674,1756291850463,-480.0,0.00022355,2]
[381595675,1756291850473,-539.03,0.00022355,2]
[381595676,1756291850483,-480.0,0.00022355,2]
[381595677,1756291850493,-480.0,0.00022355,2]
[381595678,1756291850502,-218.64469174,0.00022355,2]
[381595679,1756291850512,-480.0,0.00022355,2]
[381595680,1756291850521,-1120.72,0.00022355,2]
[381595681,1756291850531,-480.0,0.00022355,2]
[381595682,1756291850541,-499.37,0.00022355,2]
[381595683,1756291850551,-480.0,0.00022355,2]
[381595684,1756291850561,-480.0,0.00022355,2]
[381595685,1756291850570,-480.0,0.00022355,2]
[381595686,1756291850580,-480.0,0.00022355,2]
[381595687,1756291850589,-480.0,0.00022355,2]
[381595688,1756291850599,-552.52,0.00022355,2]
[381595689,1756291850609,-480.0,0.00022355,2]
[381595690,1756291850618,-491.59,0.00022355,2]
[381595691,1756291850627,-480.0,0.00022355,2]
[381595692,1756291850636,-480.0,0.00022355,2]
[381595693,1756291850646,-480.0,0.00022355,2]
[381595694,1756291850656,-7014.54,0.00022355,2]
[381595695,1756291850667,-541.69,0.00022355,2]
[381595696,1756291850676,-1555.7,0.00022355,2]
[381595697,1756291850688,-715.02,0.00022355,2]
[381595698,1756291850698,-813.37,0.00022355,2]
[381595699,1756291850708,-152.93944,0.00022355,7]
[381595700,1756291850717,-151.0,0.00022355,7]
[381595701,1756291850727,-151.0,0.00022355,7]
[381595702,1756291850737,-575.34,0.00022355,2]
[381595703,1756291850747,-557.151684,0.00022355,7]
[381595704,1756291850757,-151.0,0.00022355,7]
[381595705,1756291850767,-557.151684,0.00022355,7]
[381595706,1756291850776,-151.0,0.00022355,7]
[381595707,1756291850786,-151.0,0.00022355,7]
[381595708,1756291850796,-557.151684,0.00022355,7]
[381595709,1756291850806,-151.0,0.00022355,7]
[381595710,1756291850816,-557.151684,0.00022355,7]
[381595711,1756291850825,-151.0,0.00022355,7]
[381595712,1756291850835,-486.92,0.00022355,2]
[381595713,1756291850844,-151.0,0.00022355,7]
[381595714,1756291850854,-203.890403,0.00022355,7]
[381595715,1756291850864,-203.890403,0.00022355,7]
[381595716,1756291850874,-151.0,0.00022355,7]
[381595717,1756291850883,-203.890403,0.00022355,7]
[381595718,1756291850893,-151.0,0.00022355,7]
[381595719,1756291850902,-151.0,0.00022355,7]
[381595720,1756291850912,-151.0,0.00022355,7]
[381595721,1756291850922,-203.890403,0.00022355,7]
[381595722,1756291850932,-2775.62454566,0.00022355,2]
[381595723,1756291851179,-4702.91545434,0.00022355,2]
[381595724,1756291851189,-154.3049667,0.00022356,2]
[381595725,1756291851199,-153.0,0.00022356,2]
[381595726,1756291851210,-153.0,0.00022356,2]
[381595727,1756291851220,-480.0,0.00022358,2]
[381595728,1756291851232,-480.0,0.00022358,2]
[381595729,1756291851241,-480.0,0.00022358,2]
[381595730,1756291851251,-480.0,0.00022358,2]
[381595731,1756291851262,-606.47,0.00022358,2]
[381595732,1756291851271,-766.43,0.00022358,2]
[381595733,1756291851281,-480.0,0.00022358,2]
[381595734,1756291851291,-2372.38,0.00022358,2]
[381595735,1756291851301,-624.96,0.00022358,2]
[381595736,1756291851311,-480.0,0.00022361,2]
[381595737,1756291851322,-480.0,0.00022361,2]
[381595738,1756291851331,-480.0,0.00022361,2]
[381595739,1756291851341,-507.68,0.00022361,2]
[381595740,1756291851350,-480.0,0.00022361,2]
[381595741,1756291851360,-480.0,0.00022361,2]
[381595742,1756291851369,-480.0,0.00022361,2]
[381595743,1756291851378,-480.0,0.00022361,2]
[381595744,1756291851388,-480.0,0.00022361,2]
[381595745,1756291851397,-519.11,0.00022361,2]
[381595746,1756291851406,-480.0,0.00022361,2]
[381595747,1756291851416,-404.42461787,0.00022361,2]
[381595748,1756291851426,-481.51,0.00022361,2]
[381595749,1756291851437,-699.52,0.00022361,2]
[381595750,1756291851446,-480.0,0.00022361,2]
[381595751,1756291851456,-546.22,0.00022361,2]
[381595752,1756291851465,-480.0,0.00022361,2]
[381595753,1756291851475,-480.0,0.00022361,2]
[381595754,1756291851485,-769.83,0.00022361,2]
[381595755,1756291851494,-480.0,0.00022361,2]
[381595756,1756291851503,-480.0,0.00022361,2]
[381595757,1756291851513,-372.80016097,0.00022361,2]
[381595758,1756291851523,-480.0,0.00022361,2]
[381595759,1756291851532,-613.22294239,0.00022361,2]
[381595760,1756291851542,-480.0,0.00022361,2]
[381595761,1756291851552,-480.0,0.00022361,2]
[381595762,1756291851561,-480.0,0.00022361,2]
[381595763,1756291851571,-480.0,0.00022361,2]
[381595764,1756291851581,-752.43,0.00022361,2]
[381595765,1756291851591,-1146.69,0.00022361,2]
[381595766,1756291851600,-483.58,0.00022361,2]
[381595767,1756291851609,-480.0,0.00022361,2]
[381595768,1756291851619,-480.0,0.00022361,2]
[381595769,1756291851840,-502.02,0.00022361,2]
[381595770,1756291851850,-480.0,0.00022361,2]
[381595771,1756291851859,-480.0,0.00022361,2]
[381595772,1756291851870,-480.0,0.00022361,2]
[381595773,1756291851880,-480.0,0.00022361,2]
[381595774,1756291851938,-561.11378429,0.00022361,2]
[381595775,1756291851947,-480.0,0.00022361,2]
[381595776,1756291851956,-480.0,0.00022361,2]
[381595777,1756291851966,-480.0,0.00022361,2]
[381595778,1756291851975,-480.0,0.00022361,2]
[381595779,1756291851985,-701.26,0.00022361,2]
[381595780,1756291851995,-512.66276859,0.00022361,2]
[381595781,1756291852005,-699.24,0.00022361,2]
[381595782,1756291852014,-1714.26,0.00022361,2]
[381595783,1756291852023,-480.0,0.00022361,2]
[381595784,1756291852032,-480.0,0.00022361,2]
[381595785,1756291852042,-2083.47,0.00022361,2]
[381595786,1756291852052,-480.0,0.00022361,2]
[381595787,1756291852061,-550.72,0.00022361,2]
[381595788,1756291852071,-485.54506455,0.00022361,2]
[381595789,1756291852502,-480.0,0.00021917,2]
[381595790,1756291852512,-480.0,0.00021917,2]
[381595791,1756291852521,-480.0,0.00021917,2]
[381595792,1756291852531,-480.0,0.00022191,2]
[381595793,1756291852541,-480.0,0.00022191,2]
[381595794,1756291852550,-143.06422866,0.00022191,2]
[381595795,1756291853111,-196.99411817,0.00022191,2]
[381595796,1756291860535,-216.05855774,0.00021698,2]
[381595797,1756291924580,-197.39813241,0.00020703,2]
[381595798,1756291926831,-102.60186759,0.00020703,2]
[381595799,1756291926857,-54.11618765,0.00020704,2]
[381595800,1756291931912,-175.54632062,0.00020704,2]
[381595801,1756291935279,-233.52848602,0.00020704,2]
[381595802,1756291939576,-167.3945075,0.00020604,2]
[381595803,1756291941229,-203.76658486,0.00020604,2]
[381595804,1756291941254,-97.72989848,0.00020704,2]
[381595805,1756291944186,-295.70686597,0.00020704,2]
[381595806,1756291949044,-202.28984823,0.00020704,2]
[381595807,1756291955884,-193.12915293,0.00020703,2]
[381595808,1756291958605,-306.87084707,0.00020703,2]
[381595809,1756291958628,-51.61849398,0.00020703,2]
[381595810,1756291965705,-180.135331,0.00020703,2]
[381595811,1756291971342,-203.08268666,0.00020703,2]
[381595812,1756291974192,-65.16348836,0.00020703,2]
[381595813,1756291974214,-367.81709076,0.00020703,2]
[381595814,1756291980362,1278.04464925,0.000199,2]
[381595815,1756291980423,-132.18290924,0.00020703,2]
[381595816,1756291980448,-30.31251174,0.00020703,2]
[381595817,1756291982649,-313.10216777,0.00020496,2]
[381595818,1756291988092,-257.91717519,0.00020496,2]
[381595819,1756291993844,-24.45665714,0.00020496,2]
[381595820,1756291993867,-267.59687408,0.00020702,2]
[381595821,1756291995649,-32.40312592,0.00020702,2]
[381595822,1756291995676,-151.45166755,0.00020703,2]